bitfinex-derivatives/quotes_BTCF0:USTF0_20210707
["timestamp","ask_amount","ask_price","bid_price","bid_amount"]
[1625694183340,0.001,34163.0,34162.0,1.69291288]
[1625694183862,0.001,34163.0,34162.0,2.69291288]
[1625694185371,0.001,34163.0,34162.0,1.69291288]
[1625694185520,0.001,34163.0,34162.0,0.5]
[1625694185815,0.001,34163.0,34162.0,1.69208173]
[1625694185966,0.001,34163.0,34162.0,0.5]
[1625694186420,0.001,34164.0,34162.0,0.5]
[1625694187019,0.001,34164.0,34163.0,1.0]
[1625694187169,0.001,34164.0,34163.0,1.5]
[1625694187469,0.001,34164.0,34163.0,0.5]
[1625694187772,0.001,34164.0,34163.0,1.5]
[1625694188073,0.001,34164.0,34163.0,0.5]
[1625694189421,0.001,34164.0,34163.0,0.50497063]
[1625694189571,0.001,34164.0,34163.0,1.50497063]
[1625694190321,0.001,34164.0,34163.0,0.50497063]
[1625694190624,0.001,34164.0,34163.0,1.50497063]
[1625694190773,0.001,34164.0,34163.0,0.50497063]
[1625694190922,0.001,34164.0,34163.0,1.50497063]
[1625694191371,0.001,34164.0,34163.0,0.50497063]
[1625694193021,0.001,34164.0,34163.0,1.50497063]
[1625694193174,0.001,34164.0,34163.0,0.50497063]
[1625694193776,0.001,34164.0,34163.0,2.52654986]
[1625694194375,0.001,34164.0,34163.0,1.50497063]
[1625694194525,0.001,34164.0,34163.0,2.52655108]
[1625694195427,0.001,34165.0,34164.0,1.0]
[1625694195577,0.002,34170.0,34165.0,0.499]
[1625694195952,0.002,34170.0,34166.0,0.00497082]
[1625694196102,0.002,34170.0,34166.0,0.33818082]
[1625694196252,0.002,34170.0,34167.0,0.499]
[1625694196479,0.002,34170.0,34167.0,0.5039708]
[1625694196780,0.002,34170.0,34168.0,0.0049708]
[1625694196930,0.002,34170.0,34169.0,0.72172632]
[1625694197080,0.002,34170.0,34169.0,4.95192632]
[1625694197382,0.002,34170.0,34169.0,4.95689712]
[1625694207366,0.001,34171.0,34169.0,4.95689712]
[1625694207818,0.001,34171.0,34170.0,0.00498058]
[1625694215106,0.001,34171.0,34170.0,0.28769058]
[1625694216007,0.001,34171.0,34170.0,1.31446439]
[1625694216307,0.001,34172.0,34170.0,1.31446439]
[1625694216614,0.001,34172.0,34171.0,0.00498087]
[1625694216982,0.001,34172.0,34171.0,0.24555631]
[1625694217659,0.001,34172.0,34171.0,1.27354986]
[1625694218260,0.001,34172.0,34171.0,2.47286899]
[1625694219687,0.001,34172.0,34171.0,3.84569475]
[1625694221115,0.001,34172.0,34171.0,2.47286899]
[1625694221413,0.001,34172.0,34171.0,3.84576923]
[1625694222990,0.001,34172.0,34171.0,5.39458459]
[1625694223291,0.001,34172.0,34171.0,4.53413468]
[1625694223814,0.001,34172.0,34171.0,6.08352193]
[1625694226445,0.66392735,34172.0,34171.0,4.53413468]
[1625694226745,0.66392735,34172.0,34171.0,6.08375077]
[1625694227719,0.66392735,34172.0,34171.0,4.53413468]
[1625694228331,0.66292735,34172.0,34171.0,4.53413468]
[1625694228471,0.66292735,34172.0,34171.0,6.08376987]
[1625694229599,0.66426783,34173.0,34171.0,6.08376987]
[1625694229897,0.99576781,34173.0,34172.0,4.3052844]
[1625694230124,0.99576781,34173.0,34172.0,4.3102585]
[1625694230422,0.001,34173.0,34172.0,4.3102585]
[1625694230648,0.99605461,34173.0,34172.0,5.86047632]
[1625694232149,0.99605461,34173.0,34172.0,4.3102585]
[1625694234106,0.99605461,34173.0,34172.0,5.86053103]
[1625694234253,0.99605461,34173.0,34172.0,6.12428103]
[1625694234400,0.001,34173.0,34172.0,6.12428103]
[1625694235376,0.99584728,34173.0,34172.0,4.5740085]
[1625694235533,0.001,34173.0,34172.0,6.12423554]
[1625694237327,0.001,34174.0,34172.0,6.12423554]
[1625694237628,0.001,34174.0,34173.0,5.17221088]
[1625694239133,0.001,34174.0,34173.0,5.41278632]
[1625694240112,0.99516425,34174.0,34173.0,5.41278632]
[1625694240407,0.99516425,34174.0,34173.0,3.86263105]
[1625694242059,0.99516425,34174.0,34173.0,4.19837105]
[1625694242360,0.001,34174.0,34173.0,5.74837359]
[1625694246341,0.99397895,34176.0,34173.0,5.74837359]
[1625694246342,0.001,34175.0,34173.0,5.74837359]
[1625694246638,0.001,34175.0,34174.0,5.17031607]
[1625694247314,0.001,34175.0,34174.0,5.41089151]
[1625694249278,0.001,34175.0,34174.0,7.13229154]
[1625694251605,0.001,34175.0,34174.0,7.1454821]
[1625694251896,0.001,34175.0,34174.0,7.13229154]
[1625694252205,0.001,34175.0,34174.0,7.14548194]
[1625694252496,0.001,34175.0,34174.0,7.13229154]
[1625694253246,0.001,34175.0,34174.0,7.64800773]
[1625694254080,0.001,34175.0,34174.0,7.66118973]
[1625694254522,0.001,34175.0,34174.0,7.64800773]
[1625694254823,0.001,34175.0,34174.0,7.6611833]
[1625694255349,0.002,34180.0,34174.0,7.6611833]
[1625694255499,0.002,34180.0,34174.0,7.64800773]
[1625694255800,0.002,34180.0,34179.0,5.67010317]
[1625694256400,0.002,34180.0,34179.0,5.67516625]
[1625694257299,0.002,34180.0,34179.0,6.15631713]
[1625694258353,0.002,34181.0,34179.0,6.15631713]
[1625694258653,0.002,34181.0,34180.0,5.66445076]
[1625694258802,0.002,34181.0,34180.0,5.88735341]
[1625694259405,0.002,34181.0,34180.0,6.12792885]
[1625694259855,0.002,34181.0,34180.0,6.62792885]
[1625694260154,0.002,34181.0,34180.0,8.34433352]
[1625694260464,0.002,34181.0,34180.0,9.34433352]
[1625694261133,1.5333,34183.0,34180.0,9.34433352]
[1625694261281,0.002,34181.0,34180.0,9.34433352]
[1625694261431,0.002,34181.0,34180.0,2.67481011]
[1625694261585,0.002,34181.0,34180.0,8.3348629]
[1625694261733,0.002,34181.0,34180.0,9.33993968]
[1625694262032,0.003,34186.0,34180.0,9.33993968]
[1625694262182,0.003,34186.0,34180.0,9.35308809]
[1625694262334,0.003,34186.0,34185.0,5.65979152]
[1625694262491,0.003,34186.0,34185.0,6.15979152]
[1625694262651,0.003,34186.0,34185.0,7.15979152]
[1625694262796,0.004,34191.0,34185.0,8.87848669]
[1625694263095,0.004,34191.0,34186.0,0.00507577]
[1625694263238,0.004,34191.0,34190.0,6.65469238]
[1625694263393,0.004,34191.0,34190.0,8.1503487]
[1625694263690,0.004,34191.0,34190.0,8.15542391]
[1625694263915,0.004,34191.0,34190.0,9.86878688]
[1625694264369,0.004,34192.0,34190.0,9.86878688]
[1625694264517,0.004,34192.0,34190.0,8.86878688]
[1625694264670,0.004,34192.0,34191.0,5.65153581]
[1625694264818,0.004,34192.0,34191.0,7.15153581]
[1625694265043,0.004,34192.0,34191.0,12.24453581]
[1625694265346,0.004,34192.0,34191.0,12.48511125]
[1625694265648,0.005,34197.0,34191.0,14.19613989]
[1625694265949,0.005,34197.0,34196.0,5.64635716]
[1625694266096,0.005,34197.0,34196.0,7.14635716]
[1625694266246,0.005,34197.0,34196.0,7.15143211]
[1625694266628,0.005,34197.0,34196.0,5.61151652]
[1625694267080,0.005,34197.0,34196.0,4.61151652]
[1625694267374,0.002,34199.0,34196.0,5.0926674]
[1625694267522,0.002,34199.0,34198.0,3.58862976]
[1625694267671,0.002,34199.0,34198.0,4.33929115]
[1625694267823,0.002,34199.0,34198.0,2.9721941]
[1625694268122,0.002,34199.0,34198.0,4.33925629]
[1625694268582,0.002,34199.0,34198.0,2.9721941]
[1625694268729,0.002,34199.0,34198.0,3.47727142]
[1625694268873,0.002,34199.0,34198.0,4.84300601]
[1625694269023,0.002,34199.0,34198.0,3.47727142]
[1625694269182,0.002,34199.0,34198.0,3.4721941]
[1625694269474,0.002,34199.0,34198.0,5.07850698]
[1625694269623,0.002,34199.0,34198.0,4.57850698]
[1625694270223,0.002,34199.0,34198.0,3.21276954]
[1625694270674,0.002,34199.0,34198.0,2.01655962]
[1625694271127,0.002,34199.0,34198.0,1.77855962]
[1625694271875,0.002,34199.0,34198.0,0.75323683]
[1625694272326,0.002,34199.0,34198.0,0.24057544]
[1625694272857,0.22739,34199.0,34198.0,0.24057544]
[1625694274502,0.22739,34199.0,34193.0,0.51167665]
[1625694274668,0.22739,34199.0,34192.0,0.51164095]
[1625694274803,0.22739,34199.0,34191.0,5.33357544]
[1625694275412,0.22739,34199.0,34198.0,0.24057544]
[1625694276157,0.22739,34199.0,34192.0,0.24057544]
[1625694276310,0.22539,34199.0,34195.0,0.001]
[1625694277217,0.49724842,34198.0,34195.0,0.001]
[1625694277526,0.72172632,34196.0,34190.0,0.002]
[1625694277661,0.49678013,34195.0,34190.0,0.002]
[1625694278262,0.49664962,34194.0,34190.0,0.002]
[1625694278410,0.49660676,34195.0,34190.0,0.002]
[1625694278712,0.49668873,34194.0,34190.0,0.002]
[1625694279311,0.49668873,34194.0,34189.0,0.002]
[1625694279462,0.48115088,34190.0,34189.0,0.002]
[1625694279621,0.71226088,34190.0,34189.0,0.002]
[1625694280812,1.20851928,34190.0,34189.0,0.002]
[1625694282016,2.20020412,34190.0,34189.0,0.002]
[1625694282317,3.35667191,34190.0,34189.0,0.002]
[1625694282764,3.35667191,34190.0,34174.0,1.02894727]
[1625694282765,4.67785229,34190.0,34171.0,0.45849912]
[1625694282930,4.67785229,34190.0,34167.0,0.4]
[1625694283064,0.33030538,34183.0,34173.0,0.34139916]
[1625694283220,0.33003498,34179.0,34169.0,0.34140955]
[1625694283364,4.08893498,34179.0,34169.0,0.34140955]
[1625694283514,0.96230176,34170.0,34169.0,0.34140955]
[1625694283664,1.23092176,34170.0,34169.0,0.34140955]
[1625694283966,1.23092176,34170.0,34167.0,0.4]
[1625694283967,1.23092176,34170.0,34167.0,0.74142786]
[1625694284265,1.23092176,34170.0,34167.0,0.4]
[1625694285241,5.2047,34166.0,34156.0,1.53648147]
[1625694285391,5.2047,34166.0,34152.0,1.5364211]
[1625694285541,0.96230176,34153.0,34152.0,1.5364211]
[1625694285691,1.26269176,34153.0,34151.0,1.53654249]
[1625694285991,1.26269176,34153.0,34152.0,0.00508699]
[1625694286458,6.12469176,34153.0,34152.0,0.00508699]
[1625694286597,6.12469176,34153.0,34148.0,1.53671379]
[1625694286744,6.12469176,34153.0,34145.0,1.53588588]
[1625694286895,6.12469176,34153.0,34144.0,1.53594164]
[1625694287043,6.12469176,34153.0,34146.0,0.00508789]
[1625694287344,6.12469176,34153.0,34143.0,1.53588993]
[1625694287497,0.31417617,34144.0,34143.0,1.53588993]
[1625694287651,0.66075617,34144.0,34142.0,1.77647421]
[1625694287794,0.66075617,34144.0,34143.0,1.53589705]
[1625694288621,0.66075617,34144.0,34142.0,1.77538479]
[1625694288771,4.559,34143.0,34141.0,1.5348251]
[1625694289372,4.559,34143.0,34132.0,0.057]
[1625694289373,4.559,34143.0,34140.0,1.53469305]
[1625694289527,0.48115088,34141.0,34140.0,1.53469305]
[1625694290049,0.48115088,34141.0,34140.0,2.21678733]
[1625694290652,0.48115088,34141.0,34140.0,0.68209428]
[1625694291700,0.48115088,34141.0,34140.0,9.428e-05]
[1625694292753,0.48115088,34141.0,34132.0,0.057]
[1625694292902,0.48115088,34141.0,34131.0,1.77275558]
[1625694293061,0.48115088,34141.0,34132.0,1.53217461]
[1625694293517,0.48115088,34133.0,34132.0,1.53217461]
[1625694293656,0.81858088,34133.0,34132.0,1.53217461]
[1625694293803,0.81858088,34133.0,34131.0,1.77254475]
[1625694294261,0.81858088,34133.0,34131.0,0.24057544]
[1625694295615,0.81858088,34133.0,34129.0,0.24057544]
[1625694296654,4.94178088,34133.0,34129.0,0.24057544]
[1625694296804,4.94178088,34133.0,34127.0,0.001]
[1625694297560,0.24057544,34128.0,34127.0,0.001]
[1625694298005,0.24057544,34128.0,34127.0,1.35983469]
[1625694299583,0.24057544,34128.0,34127.0,1.60041013]
[1625694300181,0.24057544,34130.0,34128.0,1.0]
[1625694300330,0.24057544,34133.0,34129.0,2.88315765]
[1625694300479,0.001,34142.0,34129.0,2.88315765]
[1625694300630,0.001,34142.0,34132.0,1.35675614]
[1625694300782,0.001,34142.0,34141.0,4.1061]
[1625694300931,0.001,34142.0,34141.0,4.35795]
[1625694301530,0.001,34142.0,34141.0,4.83910088]
[1625694301681,0.24057544,34145.0,34141.0,4.83910088]
[1625694303566,0.24057544,34148.0,34141.0,5.07967632]
[1625694303709,0.24057544,34148.0,34141.0,6.2660221]
[1625694303858,0.24057544,34148.0,34143.0,1.0]
[1625694304158,0.24057544,34148.0,34144.0,1.0]
[1625694304460,0.24057544,34148.0,34145.0,0.5]
[1625694305357,0.24057544,34148.0,34146.0,1.0]
[1625694305518,0.24057544,34148.0,34146.0,1.74057544]
[1625694305813,0.003,34152.0,34146.0,1.74057544]
[1625694307100,0.9869,34171.0,34146.0,1.74057544]
[1625694307236,0.9024,34165.0,34158.0,4.4802]
[1625694307387,4.7561,34179.0,34158.0,4.4802]
[1625694307388,0.005,34166.0,34158.0,4.781]
[1625694307534,0.24557544,34166.0,34165.0,0.48115088]
[1625694307687,0.24557544,34166.0,34165.0,0.73656088]
[1625694307985,0.005,34166.0,34165.0,0.73656088]
[1625694309491,0.005,34166.0,34165.0,1.23656088]
[1625694309642,0.005,34166.0,34165.0,1.47713632]
[1625694310390,0.005,34168.0,34165.0,1.47713632]
[1625694310990,0.005,34168.0,34167.0,1.0]
[1625694311149,0.005,34168.0,34167.0,1.5]
[1625694311442,0.005,34168.0,34167.0,1.50507684]
[1625694312268,0.24057544,34176.0,34175.0,3.685]
[1625694312415,0.24057544,34176.0,34175.0,3.95947]
[1625694313020,0.24057544,34180.0,34175.0,3.95947]
[1625694313166,0.24057544,34180.0,34176.0,1.0]
[1625694313317,0.24057544,34183.0,34177.0,0.5]
[1625694313617,0.24057544,34193.0,34182.0,0.72172632]
[1625694313769,0.24057544,34193.0,34182.0,1.06697632]
[1625694314230,0.24057544,34193.0,34192.0,4.7668]
[1625694314444,0.24057544,34193.0,34192.0,4.98404]
[1625694315647,0.24057544,34200.0,34192.0,5.46519088]
[1625694316397,0.001,34196.0,34192.0,5.46519088]
[1625694316697,0.001,34196.0,34192.0,6.96519088]
[1625694316998,0.001,34196.0,34194.0,1.0]
[1625694317310,0.001,34196.0,34192.0,5.96519088]
[1625694317599,0.001,34196.0,34195.0,0.24057544]
[1625694321952,0.001,34196.0,34192.0,0.48115088]
[1625694322113,0.27547,34196.0,34192.0,0.48115088]
[1625694322402,5.35487,34196.0,34184.0,0.057]
[1625694322551,5.35487,34196.0,34176.0,0.9377]
[1625694322702,5.35487,34196.0,34177.0,0.057]
[1625694323152,5.35487,34196.0,34176.0,0.9377]
[1625694323602,0.24057544,34183.0,34182.0,0.24057544]
[1625694323754,0.53191544,34183.0,34182.0,0.24057544]
[1625694330435,0.24057544,34183.0,34182.0,0.24057544]
[1625694336977,0.24057544,34183.0,34179.0,0.001]
[1625694337793,0.24057544,34180.0,34179.0,0.001]
[1625694339747,0.24057544,34180.0,34179.0,0.24157544]
[1625694340727,0.24057544,34180.0,34179.0,0.24665577]
[1625694345371,0.24057544,34180.0,34179.0,0.47810577]
[1625694346874,0.24057544,34183.0,34179.0,0.47810577]
[1625694347330,0.24157544,34183.0,34180.0,0.00507953]
[1625694347476,0.001,34183.0,34180.0,0.00507953]
[1625694347928,0.001,34183.0,34182.0,0.24057544]
[1625694348376,0.001,34183.0,34182.0,0.24565471]
[1625694351159,0.001,34183.0,34182.0,0.33061527]
[1625694351465,0.001,34183.0,34182.0,0.50054023]
[1625694352133,0.001,34183.0,34182.0,0.24565471]
[1625694352584,0.001,34183.0,34182.0,2.42566684]
[1625694352734,0.001,34183.0,34182.0,1.42566684]
[1625694352885,0.001,34183.0,34182.0,0.92566684]
[1625694353334,0.001,34183.0,34182.0,0.24565471]
[1625694353490,0.001,34183.0,34182.0,0.92567473]
[1625694353633,0.001,34183.0,34182.0,1.42567473]
[1625694353784,0.001,34183.0,34182.0,2.44568064]
[1625694353936,0.001,34183.0,34182.0,3.44568064]
[1625694354085,0.001,34183.0,34182.0,2.44568064]
[1625694354384,0.001,34183.0,34182.0,3.44568064]
[1625694354535,0.001,34183.0,34182.0,2.44568064]
[1625694355363,0.001,34183.0,34182.0,3.44568064]
[1625694355660,0.003,34193.0,34182.0,3.44568064]
[1625694355818,0.003,34193.0,34182.0,4.69351513]
[1625694355969,0.003,34193.0,34192.0,0.48115088]
[1625694356112,0.003,34193.0,34192.0,0.72286088]
[1625694356261,0.49487632,34203.0,34192.0,0.72286088]
[1625694356412,0.003,34196.0,34192.0,0.72793915]
[1625694356564,0.003,34196.0,34193.0,0.00507803]
[1625694357913,0.003,34196.0,34195.0,0.24057544]
[1625694358214,0.003,34196.0,34195.0,0.24565338]
[1625694361823,0.003,34196.0,34195.0,0.5016964]
[1625694363097,0.003,34196.0,34195.0,0.33100105]
[1625694363247,0.003,34196.0,34195.0,0.50184863]
[1625694365349,0.001,34199.0,34195.0,0.50184863]
[1625694365500,0.08359216,34198.0,34195.0,0.24565338]
[1625694365648,0.08359216,34198.0,34196.0,0.25652895]
[1625694365798,0.08359216,34198.0,34196.0,0.26161016]
[1625694365958,0.08359216,34198.0,34197.0,0.24057544]
[1625694366101,0.25056832,34198.0,34197.0,0.24057544]
[1625694366248,0.08359216,34198.0,34197.0,0.24057544]
[1625694366549,0.25053396,34198.0,34197.0,0.24057544]
[1625694366849,0.66805314,34199.0,34197.0,0.24057544]
[1625694367002,0.66689993,34198.0,34197.0,0.24057544]
[1625694367154,0.66689993,34198.0,34197.0,4.89237544]
[1625694367299,1.66786361,34198.0,34197.0,4.89237544]
[1625694367450,0.66689993,34198.0,34197.0,4.89237544]
[1625694367749,1.66785744,34198.0,34197.0,4.89237544]
[1625694369026,2.00240744,34198.0,34197.0,0.24057544]
[1625694369326,3.16953351,34198.0,34197.0,0.24057544]
[1625694369630,4.50317458,34198.0,34197.0,0.24057544]
[1625694370077,4.74375002,34198.0,34192.0,0.48215088]
[1625694370301,1.66673905,34193.0,34192.0,0.48215088]
[1625694370902,1.66673905,34193.0,34192.0,0.24157544]
[1625694370903,2.83270816,34193.0,34192.0,0.24157544]
[1625694371951,4.16533433,34193.0,34192.0,0.24157544]
[1625694372101,4.40590977,34193.0,34192.0,0.24157544]
[1625694372254,3.0732836,34193.0,34192.0,0.24157544]
[1625694372401,4.40592857,34193.0,34192.0,0.24157544]
[1625694372854,4.90561283,34193.0,34192.0,0.24157544]
[1625694375779,3.57296786,34193.0,34192.0,0.24157544]
[1625694376077,3.57296786,34193.0,34192.0,0.24665797]
[1625694376904,3.57296786,34193.0,34192.0,0.24157544]
[1625694377355,3.57296786,34193.0,34192.0,0.24057544]
[1625694378029,4.90562698,34193.0,34192.0,0.24057544]
[1625694378707,3.57296786,34193.0,34192.0,0.24057544]
[1625694379457,3.57296786,34193.0,34192.0,0.24565871]
[1625694380210,2.40699875,34193.0,34192.0,0.24565871]
[1625694381425,2.40699875,34193.0,34192.0,0.33134172]
[1625694382084,2.40699875,34193.0,34192.0,0.50270462]
[1625694382387,1.40698865,34193.0,34192.0,0.50270462]
[1625694383599,2.40764075,34193.0,34192.0,0.50270462]
[1625694383735,1.40698865,34193.0,34192.0,0.50270462]
[1625694384036,1.40698865,34193.0,34192.0,0.41702161]
[1625694384335,1.40698865,34193.0,34192.0,0.7597308]
[1625694384787,0.49968426,34193.0,34192.0,1.44514775]
[1625694384937,1.00116465,34195.0,34192.0,3.67261243]
[1625694384938,0.25078426,34195.0,34192.0,3.67261243]
[1625694385239,0.001,34196.0,34194.0,3.42677673]
[1625694385537,0.001,34196.0,34195.0,2.23249177]
[1625694386137,0.001,34196.0,34195.0,2.71364265]
[1625694386289,1.00259708,34200.0,34195.0,6.28348229]
[1625694386290,0.25116236,34200.0,34195.0,6.28348229]
[1625694386452,0.66904168,34202.0,34195.0,6.28348229]
[1625694386588,0.66904168,34202.0,34196.0,1.5]
[1625694386749,0.66944917,34205.0,34199.0,4.28248475]
[1625694386890,0.003,34206.0,34204.0,2.91194423]
[1625694387053,0.003,34206.0,34204.0,3.20462423]
[1625694387191,0.24057544,34208.0,34205.0,2.91696449]
[1625694387192,0.05357544,34208.0,34205.0,2.91696449]
[1625694387344,0.67016877,34209.0,34205.0,2.91696449]
[1625694387490,0.91450189,34211.0,34207.0,1.71150733]
[1625694387642,0.24457544,34211.0,34209.0,0.68455886]
[1625694387940,0.004,34211.0,34210.0,0.68457086]
[1625694388093,0.004,34211.0,34210.0,0.68965045]
[1625694388242,0.004,34211.0,34210.0,2.67875875]
[1625694389146,0.004,34211.0,34210.0,2.67367916]
[1625694389290,0.004,34212.0,34210.0,2.67367916]
[1625694389441,0.004,34212.0,34210.0,1.64687262]
[1625694390116,0.004,34212.0,34211.0,0.68389532]
[1625694390266,0.004,34212.0,34211.0,6.04419532]
[1625694391170,0.004,34212.0,34211.0,7.06998677]
[1625694392146,0.004,34212.0,34211.0,6.04419532]
[1625694394997,0.004,34212.0,34211.0,5.3603]
[1625694397624,1.67231957,34212.0,34211.0,5.3603]
[1625694397773,3.10262916,34212.0,34211.0,5.3603]
[1625694398452,4.43251016,34212.0,34211.0,0.2403]
[1625694398601,4.43251016,34212.0,34204.0,0.002]
[1625694398902,0.66667261,34206.0,34204.0,0.002]
[1625694400327,1.14787074,34205.0,34204.0,0.002]
[1625694401304,0.48115088,34205.0,34204.0,0.002]
[1625694405737,0.48115088,34205.0,34204.0,0.34363224]
[1625694406037,0.48115088,34205.0,34204.0,0.002]
[1625694406563,0.48115088,34205.0,34204.0,0.30794]
[1625694407238,0.48115088,34205.0,34204.0,0.64957328]
[1625694407389,0.48115088,34205.0,34204.0,0.64757328]
[1625694407840,0.48115088,34205.0,34204.0,0.98925385]
[1625694408897,0.48115088,34205.0,34204.0,0.30594]
[1625694410390,0.48115088,34205.0,34204.0,0.64762869]
[1625694410994,0.48115088,34205.0,34204.0,0.65271238]
[1625694412203,0.48115088,34205.0,34204.0,0.99439451]
[1625694415124,0.48115088,34205.0,34204.0,2.01945119]
[1625694415423,0.48115088,34205.0,34204.0,0.99439451]
[1625694415573,0.48115088,34205.0,34204.0,2.01942304]
[1625694415873,0.48115088,34205.0,34204.0,0.99439451]
[1625694419341,0.48115088,34205.0,34204.0,2.0192824]
[1625694422937,0.48115088,34205.0,34204.0,0.99439451]
[1625694423839,0.48115088,34205.0,34204.0,0.65263619]
[1625694428356,0.48115088,34205.0,34204.0,0.99424512]
[1625694429998,0.48115088,34205.0,34204.0,2.01917066]
[1625694433901,0.48115088,34205.0,34204.0,3.21591879]
[1625694435252,0.48115088,34205.0,34204.0,2.01917066]
[1625694435559,0.48115088,34205.0,34204.0,3.21681569]
[1625694435852,0.48115088,34205.0,34204.0,2.01917066]
[1625694438634,0.72526088,34205.0,34204.0,2.01917066]
[1625694438795,1.3949099,34205.0,34204.0,0.65352536]
[1625694438935,1.3949099,34205.0,34204.0,0.00508369]
[1625694439235,7.11557979,34205.0,34204.0,0.00508369]
[1625694439386,2.39897979,34205.0,34204.0,0.34785232]
[1625694439686,1.3949099,34205.0,34204.0,0.69059801]
[1625694440059,1.06061388,34205.0,34204.0,5.25642656]
[1625694440212,1.06061388,34205.0,34204.0,6.4560982]
[1625694440213,0.48115088,34205.0,34204.0,6.4560982]
[1625694440659,0.48115088,34205.0,34204.0,7.82710004]
[1625694441411,0.48115088,34205.0,34204.0,9.37040354]
[1625694441711,0.48115088,34205.0,34204.0,9.37901297]
[1625694441871,0.48115088,34205.0,34204.0,9.37040354]
[1625694442009,0.24057544,34205.0,34204.0,9.37040354]
[1625694442473,0.24057544,34205.0,34204.0,9.61958804]
[1625694443511,0.24057544,34205.0,34204.0,11.33564746]
[1625694444788,0.24057544,34205.0,34204.0,9.61958804]
[1625694444939,0.24057544,34205.0,34204.0,9.61097898]
[1625694445388,0.24057544,34205.0,34204.0,11.32740284]
[1625694446156,0.24057544,34205.0,34204.0,9.61097898]
[1625694457485,0.001,34209.0,34204.0,9.61097898]
[1625694457629,0.001,34209.0,34205.0,0.057]
[1625694457793,0.001,34209.0,34208.0,5.83627989]
[1625694458230,0.001,34209.0,34208.0,5.8413595]
[1625694458529,0.001,34209.0,34208.0,6.08193494]
[1625694464688,0.001,34209.0,34208.0,6.32251038]
[1625694465742,0.001,34209.0,34208.0,6.31743077]
[1625694465890,0.001,34209.0,34208.0,6.32250868]
[1625694467394,0.001,34213.0,34208.0,6.32250868]
[1625694467547,0.001,34213.0,34212.0,5.8346397]
[1625694467699,0.001,34213.0,34212.0,6.0630197]
[1625694467994,0.001,34213.0,34212.0,6.0680974]
[1625694468595,0.001,34213.0,34212.0,6.54924828]
[1625694476259,0.001,34217.0,34212.0,6.54924828]
[1625694476557,0.001,34217.0,34216.0,4.80152679]
[1625694476707,0.001,34217.0,34216.0,5.04210223]
[1625694476857,0.001,34217.0,34216.0,5.04717687]
[1625694479949,0.33779657,34217.0,34216.0,3.67531208]
[1625694480239,0.001,34217.0,34216.0,5.04696596]
[1625694480913,0.001,34217.0,34216.0,4.80639052]
[1625694481365,1.17888299,34217.0,34216.0,2.23435494]
[1625694481517,4.82008299,34217.0,34216.0,2.23435494]
[1625694481666,8.63866388,34217.0,34215.0,0.51445213]
[1625694481967,8.63866388,34217.0,34210.0,0.001]
[1625694481968,3.02153445,34216.0,34210.0,0.001]
[1625694482266,3.94435405,34217.0,34210.0,0.001]
[1625694482267,1.50991208,34211.0,34210.0,0.001]
[1625694482418,3.01845302,34211.0,34210.0,0.001]
[1625694482565,3.03158225,34211.0,34210.0,0.001]
[1625694482715,3.75330857,34211.0,34210.0,0.001]
[1625694483992,4.25330857,34211.0,34210.0,0.001]
[1625694484442,4.25330857,34211.0,34205.0,0.002]
[1625694484591,5.92640003,34211.0,34205.0,0.002]
[1625694484742,3.49267214,34206.0,34205.0,0.002]
[1625694484893,3.76571214,34206.0,34205.0,0.002]
[1625694485353,3.76571214,34206.0,34203.0,0.002]
[1625694485493,1.505889,34204.0,34203.0,0.002]
[1625694486771,1.74646444,34204.0,34203.0,0.002]
[1625694489622,0.7425942,34204.0,34203.0,0.002]
[1625694490449,0.24057544,34204.0,34203.0,0.515822]
[1625694490900,0.24057544,34204.0,34203.0,1.54343973]
[1625694491955,0.24057544,34204.0,34203.0,1.84098973]
[1625694497288,0.24057544,34204.0,34203.0,1.83898973]
[1625694498264,0.24057544,34204.0,34203.0,1.84413362]
[1625694499164,0.24057544,34204.0,34203.0,3.21391797]
[1625694501716,0.24057544,34204.0,34203.0,4.41251198]
[1625694511479,0.24057544,34204.0,34203.0,0.30269389]
[1625694511704,0.24057544,34204.0,34203.0,4.41243101]
[1625694517942,0.24057544,34204.0,34203.0,5.95358803]
[1625694518095,0.24057544,34204.0,34203.0,4.41243101]
[1625694522674,0.24057544,34204.0,34203.0,4.42104018]
[1625694522825,0.24057544,34204.0,34203.0,4.41243101]
[1625694523278,4.38797544,34204.0,34203.0,4.41243101]
[1625694523578,0.24057544,34204.0,34203.0,4.41243101]
[1625694523730,0.24057544,34204.0,34203.0,3.04251864]
[1625694526431,0.24057544,34204.0,34203.0,4.41263703]
[1625694526956,0.24057544,34204.0,34203.0,3.04251864]
[1625694529058,0.24057544,34204.0,34203.0,1.84384531]
[1625694529208,0.24057544,34204.0,34203.0,1.54629531]
[1625694530043,0.24057544,34204.0,34203.0,0.00514389]
[1625694530337,0.24057544,34204.0,34203.0,0.51403396]
[1625694530338,0.74290307,34204.0,34203.0,0.51403396]
[1625694530487,1.74723277,34204.0,34202.0,0.51918624]
[1625694530635,1.74723277,34204.0,34203.0,0.00514243]
[1625694530786,1.24490514,34204.0,34203.0,0.00514243]
[1625694531090,1.74709187,34204.0,34203.0,0.00514243]
[1625694531238,1.74709187,34204.0,34201.0,0.01483101]
[1625694531387,1.74709187,34204.0,34199.0,0.39879304]
[1625694531538,2.50695264,34202.0,34196.0,0.002]
[1625694531700,2.50695264,34202.0,34200.0,0.00513649]
[1625694531701,2.81563264,34202.0,34200.0,0.00513649]
[1625694531838,1.33680975,34201.0,34200.0,0.00513649]
[1625694531987,1.33680975,34201.0,34197.0,0.00513675]
[1625694531988,2.50641572,34201.0,34197.0,0.00513675]
[1625694532213,1.33680975,34201.0,34200.0,0.00513679]
[1625694532516,2.50635748,34201.0,34197.0,0.00513681]
[1625694532814,1.16952611,34198.0,34197.0,0.00513681]
[1625694532973,6.39432611,34198.0,34197.0,0.00513681]
[1625694533265,7.11605243,34198.0,34197.0,0.00513681]
[1625694534467,8.45166557,34198.0,34197.0,0.00513681]
[1625694534773,8.45166557,34198.0,34196.0,0.002]
[1625694534917,2.50336405,34197.0,34196.0,0.002]
[1625694535296,2.50336405,34197.0,34196.0,0.00713723]